lending/lending_fUSD_20250122
["ID","MTS","AMOUNT","RATE_DAILY","PERIOD"]
[349936447,1737521448008,-500.0,0.00020272,2]
[349936448,1737521448017,-200.0,0.00020272,2]
[349936449,1737521448026,-2523.78,0.00020272,2]
[349936450,1737521448037,-1173.45,0.00020272,2]
[349936451,1737521448046,-500.0,0.00020272,2]
[349936452,1737521448055,-500.0,0.00020272,2]
[349936453,1737521448064,-500.0,0.00020272,2]
[349936454,1737521448074,-797.11,0.00020272,2]
[349936455,1737521448083,-500.0,0.00020272,2]
[349936456,1737521448092,-1697.95,0.00020272,2]
[349936457,1737521448102,-500.0,0.00020272,2]
[349936458,1737521448111,-500.0,0.00020272,2]
[349936459,1737521448120,-6586.57,0.00020272,2]
[349936460,1737521448130,-500.0,0.00020272,2]
[349936461,1737521448139,-1350.46,0.00020272,2]
[349936462,1737521448149,-500.0,0.00020272,2]
[349936463,1737521448158,-505.70380439,0.00020272,2]
[349936464,1737521448168,-374.83163673,0.00020272,2]
[349936465,1737521448178,-646.6552314,0.00020272,2]
[349936466,1737521448188,-11588.89,0.00020272,2]
[349936467,1737521448198,-500.0,0.00020272,2]
[349936468,1737521448208,-1314.1,0.00020272,2]
[349936469,1737521448218,-500.0,0.00020272,2]
[349936470,1737521448228,-516.16,0.00020272,2]
[349936471,1737521448238,-1139.88,0.00020272,2]
[349936472,1737521448248,-500.0,0.00020272,2]
[349936473,1737521448258,-1236.09,0.00020272,2]
[349936474,1737521448268,-500.0,0.00020272,2]
[349936475,1737521448277,-500.0,0.00020272,2]
[349936476,1737521448287,-500.0,0.00020272,2]
[349936477,1737521448296,-500.0,0.00020272,2]
[349936478,1737521448306,-787.16,0.00020272,2]
[349936479,1737521448316,-500.0,0.00020272,2]
[349936480,1737521448326,-2884.44,0.00020272,2]
[349936481,1737521448336,-1406.12,0.00020272,2]
[349936482,1737521448345,-1247.11,0.00020272,2]
[349936483,1737521448354,-6250.25,0.00020272,2]
[349936484,1737521448364,-552.55121327,0.00020272,2]
[349936485,1737521448373,-500.0,0.00020272,2]
[349936486,1737521448383,-500.0,0.00020272,2]
[349936487,1737521448393,-591.27,0.00020272,2]
[349936488,1737521448402,-573.94,0.00020272,2]
[349936489,1737521448412,-500.0,0.00020272,2]
[349936490,1737521448421,-500.0,0.00020272,2]
[349936491,1737521448431,-2698.51,0.00020272,2]
[349936492,1737521448440,-783.35,0.00020272,2]
[349936493,1737521448450,-887.56,0.00020272,2]
[349936494,1737521448460,-500.0,0.00020272,2]
[349936495,1737521448473,-154.519401,0.00020272,2]
[349936496,1737521448483,-500.0,0.00020272,2]
[349936497,1737521448492,-949.61,0.00020272,2]
[349936498,1737521448503,-1045.69,0.00020272,2]
[349936499,1737521448512,-887.91,0.00020272,2]
[349936500,1737521448522,-3230.15,0.00020272,2]
[349936501,1737521448532,-897.35,0.00020272,2]
[349936502,1737521448542,-155.582717,0.00020272,2]
[349936503,1737521448552,-500.0,0.00020272,2]
[349936504,1737521448562,-500.0,0.00020272,2]
[349936505,1737521448572,-539.51,0.00020272,2]
[349936506,1737521448581,-3672.5,0.00020272,2]
[349936507,1737521448590,-1248.91,0.00020272,2]
[349936508,1737521448600,-500.0,0.00020272,2]
[349936509,1737521448609,-500.0,0.00020272,2]
[349936510,1737521448619,-3018.25,0.00020272,2]
[349936511,1737521448628,-861.49,0.00020272,2]
[349936512,1737521448637,-500.0,0.00020272,2]
[349936513,1737521448647,-1737.46,0.00020272,2]
[349936514,1737521448656,-838.66,0.00020272,2]
[349936515,1737521448666,-500.0,0.00020272,2]
[349936516,1737521448675,-500.0,0.00020272,2]
[349936517,1737521448685,-500.0,0.00020272,2]
[349936518,1737521448695,-500.0,0.00020272,2]
[349936519,1737521448704,-534.83,0.00020272,2]
[349936520,1737521448713,-656.44,0.00020272,2]
[349936521,1737521448723,-500.0,0.00020272,2]
[349936522,1737521448732,-1057.54,0.00020272,2]
[349936523,1737521448742,-1128.04,0.00020272,2]
[349936524,1737521448751,-1305.22,0.00020272,2]
[349936525,1737521448760,-2752.53,0.00020272,2]
[349936526,1737521448770,-3633.97,0.00020272,2]
[349936527,1737521448780,-1266.4,0.00020272,2]
[349936528,1737521448789,-4392.45,0.00020272,2]
[349936529,1737521448799,-155.144835,0.00020272,2]
[349936530,1737521448809,-500.0,0.00020272,2]
[349936531,1737521448818,-500.0,0.00020272,2]
[349936532,1737521448828,-500.0,0.00020272,2]
[349936533,1737521448837,-5162.84,0.00020272,2]
[349936534,1737521448847,-1190.61,0.00020272,2]
[349936535,1737521448857,-507.79885483,0.00020272,2]
[349936536,1737521448866,-500.0,0.00020272,2]
[349936537,1737521448875,-1721.44,0.00020272,2]
[349936538,1737521448885,-500.0,0.00020272,2]
[349936539,1737521448895,-343.66885143,0.00020272,2]
[349936540,1737521448904,-1458.25,0.00020272,2]
[349936541,1737521448913,-1247.16,0.00020272,2]
[349936542,1737521448923,-500.0,0.00020272,2]
[349936543,1737521448936,-500.0,0.00020272,2]
[349936544,1737521448945,-151.381581,0.00020272,2]
[349936545,1737521448954,-500.0,0.00020272,2]
[349936546,1737521448964,-500.0,0.00020272,2]
[349936547,1737521448974,-851.98,0.00020272,2]
[349936548,1737521448983,-1841.79,0.00020272,2]
[349936549,1737521448992,-151.0,0.00020272,2]
[349936550,1737521449002,-996.43,0.00020272,2]
[349936551,1737521449012,-3610.11,0.00020272,2]
[349936552,1737521449023,-507.12957863,0.00020272,2]
[349936553,1737521449032,-506.80115461,0.00020272,2]
[349936554,1737521449042,-1277.1,0.00020272,2]
[349936555,1737521449051,-506.44004138,0.00020272,2]
[349936556,1737521449061,-500.0,0.00020272,2]
[349936557,1737521449071,-537.79,0.00020272,2]
[349936558,1737521449080,-240.07321274,0.00020272,2]
[349936559,1737521449094,-500.0,0.00020272,2]
[349936560,1737521449103,-1510.79,0.00020272,2]
[349936561,1737521449113,-2282.22,0.00020272,2]
[349936562,1737521449122,-506.39,0.00020272,2]
[349936563,1737521449132,-151.0,0.00020272,2]
[349936564,1737521449141,-1599.82,0.00020272,2]
[349936565,1737521449151,-1575.96,0.00020272,2]
[349936566,1737521449160,-6003.02,0.00020272,2]
[349936567,1737521449170,-500.0,0.00020272,2]
[349936568,1737521449179,-2074.16,0.00020272,2]
[349936569,1737521449189,-500.0,0.00020272,2]
[349936570,1737521449198,-500.0,0.00020272,2]
[349936571,1737521449208,-500.0,0.00020272,2]
[349936572,1737521449218,-500.0,0.00020272,2]
[349936573,1737521449228,-1000.0,0.00020272,2]
[349936574,1737521449237,-2504.84,0.00020272,2]
[349936575,1737521449247,-2041.12,0.00020272,2]
[349936576,1737521449256,-945.5,0.00020272,2]
[349936577,1737521449267,-500.0,0.00020272,2]
[349936578,1737521449277,-154.420236,0.00020272,2]
[349936579,1737521449287,-567.62,0.00020272,2]
[349936580,1737521449296,-589.678072,0.00020272,2]
[349936581,1737521449306,-500.0,0.00020272,2]
[349936582,1737521449315,-500.0,0.00020272,2]
[349936583,1737521449324,-500.0,0.00020272,2]
[349936584,1737521449334,-589.678072,0.00020272,2]
[349936585,1737521449344,-953.46,0.00020272,2]
[349936586,1737521449354,-500.0,0.00020272,2]
[349936587,1737521449364,-500.0,0.00020272,2]
[349936588,1737521449374,-500.0,0.00020272,2]
[349936589,1737521449384,-249.81270552,0.00020272,2]
[349936590,1737521449393,-152.2637,0.00020272,2]
[349936591,1737521449403,-500.0,0.00020272,2]
[349936592,1737521449412,-500.0,0.00020272,2]
[349936593,1737521449422,-500.0,0.00020272,2]
[349936594,1737521449432,-2648.35,0.00020272,2]
[349936595,1737521449442,-500.0,0.00020272,2]
[349936596,1737521449452,-1377.42,0.00020272,2]
[349936597,1737521449466,-771.63,0.00020272,2]
[349936598,1737521449479,-500.0,0.00020272,2]
[349936599,1737521449488,-500.0,0.00020272,2]
[349936600,1737521449497,-3297.1,0.00020272,2]
[349936601,1737521449508,-578.08,0.00020272,2]
[349936602,1737521449519,-500.0,0.00020272,2]
[349936603,1737521449528,-500.0,0.00020272,2]
[349936604,1737521449537,-500.0,0.00020272,2]
[349936605,1737521449548,-500.0,0.00020272,2]
[349936606,1737521449558,-2396.11,0.00020272,2]
[349936607,1737521449568,-1093.36,0.00020272,2]
[349936608,1737521449577,-158.975512,0.00020272,2]
[349936609,1737521449587,-500.0,0.00020272,2]
[349936610,1737521449596,-521.97,0.00020272,2]
[349936611,1737521449605,-500.0,0.00020272,2]
[349936612,1737521449614,-1091.58,0.00020272,2]
[349936613,1737521449623,-177.82688816,0.00020272,2]
[349936614,1737521449641,-1824.76311184,0.00020272,2]
[349936615,1737521449650,-1060.75,0.00020272,2]
[349936616,1737521449659,-615.94846111,0.00020272,2]
[349936617,1737521449676,-283.69258891,0.00020272,2]
[349936618,1737521449757,-354.15741109,0.00020272,2]
[349936619,1737521449767,-332.4552681,0.00020272,2]
[349936620,1737521449776,-500.0,0.00020272,2]
[349936621,1737521449785,-735.11,0.00020272,2]
[349936622,1737521449794,-539.1,0.00020272,2]
[349936623,1737521449803,-500.0,0.00020272,2]
[349936624,1737521449812,-1558.71,0.00020272,2]
[349936625,1737521449822,-500.0,0.00020272,2]
[349936626,1737521449832,-500.0,0.00020272,2]
[349936627,1737521449842,-500.0,0.00020272,2]
[349936628,1737521449852,-536.78078287,0.00020272,2]
[349936629,1737521449862,-999.68,0.00020272,2]
[349936630,1737521449872,-611.53,0.00020272,2]
[349936631,1737521449882,-596.23,0.00020272,2]
[349936632,1737521449892,-1216.6,0.00020272,2]
[349936633,1737521449901,-1881.78,0.00020272,2]
[349936634,1737521449911,-500.0,0.00020272,2]
[349936635,1737521449920,-502.54826994,0.00020273,2]
[349936636,1737521449930,-500.0,0.00020273,2]
[349936637,1737521449939,-549.79503096,0.00020273,2]
[349936638,1737521449950,-500.0,0.00020273,2]
[349936639,1737521449960,-633.64,0.00020273,2]
[349936640,1737521449969,-500.0,0.00020273,2]
[349936641,1737521449979,-500.0,0.00020273,2]
[349936642,1737521449988,-500.0,0.00020273,2]
[349936643,1737521449998,-500.0,0.00020273,2]
[349936644,1737521450008,-506.12352996,0.00020273,2]
[349936645,1737521450018,-500.0,0.00020273,2]
[349936646,1737521450027,-500.0,0.00020273,2]
[349936647,1737521450037,-500.0,0.00020273,2]
[349936648,1737521450046,-500.0,0.00020273,2]
[349936649,1737521450055,-500.0,0.00020273,2]
[349936650,1737521450064,-501.59511331,0.00020273,2]
[349936651,1737521450074,-500.0,0.00020273,2]
[349936652,1737521450084,-516.33220473,0.00020273,2]
[349936653,1737521450093,-500.0,0.00020273,2]
[349936654,1737521450102,-509.58870302,0.00020273,2]
[349936655,1737521450284,-500.0,0.00020273,2]
[349936656,1737521450294,-500.0,0.00020273,2]
[349936657,1737521450303,-500.0,0.00020273,2]
[349936658,1737521450312,-511.99439281,0.00020273,2]
[349936659,1737521450321,-500.0,0.00020273,2]
[349936660,1737521450332,-500.0,0.00020273,2]
[349936661,1737521450342,-500.0,0.00020273,2]
[349936662,1737521450352,-500.0,0.00020273,2]
[349936663,1737521450362,-500.0,0.00020273,2]
[349936664,1737521450372,-500.0,0.00020273,2]
[349936665,1737521450381,-500.0,0.00020273,2]
[349936666,1737521450392,-500.0,0.00020273,2]
[349936667,1737521450403,-500.0,0.00020273,2]
[349936668,1737521450413,-527.26425344,0.00020273,2]
[349936669,1737521450422,-500.0,0.00020273,2]
[349936670,1737521450432,-548.45947309,0.00020273,2]
[349936671,1737521450441,-500.0,0.00020273,2]
[349936672,1737521450452,-500.0,0.00020273,2]
[349936673,1737521450464,-524.01322791,0.00020273,2]
[349936674,1737521450474,-500.0,0.00020273,2]
[349936675,1737521450483,-500.0,0.00020273,2]
[349936676,1737521450493,-500.0,0.00020273,2]
[349936677,1737521450503,-311.83463134,0.00020273,2]
[349936678,1737521450512,-643.76244024,0.00020273,2]
[349936679,1737521450522,-1078.16,0.00020273,2]
[349936680,1737521450532,-500.0,0.00020273,2]
[349936681,1737521450542,-500.0,0.00020273,2]
[349936682,1737521450551,-500.0,0.00020273,2]
[349936683,1737521450560,-500.0,0.00020273,2]
[349936684,1737521450570,-500.0,0.00020273,2]
[349936685,1737521450579,-500.0,0.00020273,2]
[349936686,1737521450588,-500.0,0.00020273,2]
[349936687,1737521450597,-527.42703281,0.00020273,2]
[349936688,1737521450607,-500.0,0.00020273,2]
[349936689,1737521450615,-500.0,0.00020273,2]
[349936690,1737521450625,-500.0,0.00020273,2]
[349936691,1737521450635,-500.0,0.00020273,2]
[349936692,1737521450644,-514.81684388,0.00020273,2]
[349936693,1737521450653,-500.0,0.00020273,2]
[349936694,1737521450662,-504.37581889,0.00020273,2]
[349936695,1737521450671,-500.0,0.00020273,2]
[349936696,1737521450680,-503.88226474,0.00020273,2]
[349936697,1737521450689,-500.0,0.00020273,2]
[349936698,1737521450698,-500.0,0.00020273,2]
[349936699,1737521450707,-589.15,0.00020273,2]
[349936700,1737521450716,-500.0,0.00020273,2]
[349936701,1737521450725,-500.0,0.00020273,2]
[349936702,1737521450734,-500.0,0.00020273,2]
[349936703,1737521450743,-614.67,0.00020273,2]
[349936704,1737521450752,-500.0,0.00020273,2]
[349936705,1737521450762,-500.0,0.00020273,2]
[349936706,1737521450771,-503.57907068,0.00020273,2]
[349936707,1737521450781,-500.0,0.00020273,2]
[349936708,1737521450791,-500.0,0.00020273,2]
[349936709,1737521450800,-584.62,0.00020273,2]
[349936710,1737521450809,-500.0,0.00020273,2]
[349936711,1737521450818,-150.90521612,0.00020273,2]
[349936712,1737521450827,-500.0,0.00020273,2]
[349936713,1737521450836,-500.0,0.00020273,2]
[349936714,1737521450845,-523.6,0.00020273,2]
[349936715,1737521450855,-500.0,0.00020273,2]
[349936716,1737521450864,-500.0,0.00020273,2]
[349936717,1737521450874,-506.47723261,0.00020273,2]
[349936718,1737521450883,-563.38,0.00020273,2]
[349936719,1737521450893,-500.0,0.00020273,2]
[349936720,1737521450902,-506.78947001,0.00020273,2]
[349936721,1737521450911,-500.0,0.00020273,2]
[349936722,1737521450920,-500.0,0.00020273,2]
[349936723,1737521450929,-193.2341255,0.00020273,2]
[349936724,1737521450938,-500.0,0.00020273,2]
[349936725,1737521450947,-500.0,0.00020273,2]
[349936726,1737521450956,-500.0,0.00020273,2]
[349936727,1737521450965,-832.33,0.00020273,2]
[349936728,1737521450974,-500.0,0.00020273,2]
[349936729,1737521450983,-500.0,0.00020273,2]
[349936730,1737521450992,-500.0,0.00020273,2]
[349936731,1737521451002,-500.0,0.00020273,2]
[349936732,1737521451011,-500.0,0.00020273,2]
[349936733,1737521451020,-500.0,0.00020273,2]
[349936734,1737521451028,-500.0,0.00020273,2]
[349936735,1737521451037,-638.84,0.00020273,2]
[349936736,1737521451047,-1201.82,0.00020273,2]
[349936737,1737521451055,-500.0,0.00020273,2]
[349936738,1737521451065,-151.0,0.00020273,2]
[349936739,1737521451074,-551.03,0.00020273,2]
[349936740,1737521451083,-500.0,0.00020273,2]
[349936741,1737521451092,-500.0,0.00020273,2]
[349936742,1737521451101,-500.0,0.00020273,2]
[349936743,1737521451110,-500.0,0.00020273,2]
[349936744,1737521451119,-1470.3,0.00020273,2]
[349936745,1737521451129,-151.0,0.00020273,2]
[349936746,1737521451138,-500.0,0.00020273,2]
[349936747,1737521451148,-500.0,0.00020273,2]
[349936748,1737521451157,-777.28,0.00020273,2]
[349936749,1737521451167,-151.663241,0.00020273,2]
[349936750,1737521451176,-500.0,0.00020273,2]
[349936751,1737521451185,-500.0,0.00020273,2]
[349936752,1737521451195,-500.0,0.00020273,2]
[349936753,1737521451204,-152.136891,0.00020273,2]
[349936754,1737521451214,-500.0,0.00020273,2]
[349936755,1737521451223,-969.56,0.00020273,2]
[349936756,1737521451232,-151.254806,0.00020273,2]
[349936757,1737521451241,-500.0,0.00020273,2]
[349936758,1737521451250,-154.15251,0.00020273,2]
[349936759,1737521451259,-500.0,0.00020273,2]
[349936760,1737521451268,-500.0,0.00020273,2]
[349936761,1737521451278,-151.0,0.00020273,2]
[349936762,1737521451287,-1289.33,0.00020273,2]
[349936763,1737521451296,-500.0,0.00020273,2]
[349936764,1737521451305,-154.528261,0.00020273,2]
[349936765,1737521451314,-500.0,0.00020273,2]
[349936766,1737521451323,-842.38,0.00020273,2]
[349936767,1737521451332,-500.0,0.00020273,2]
[349936768,1737521451341,-881.66,0.00020273,2]
[349936769,1737521451350,-1105.48,0.00020273,2]
[349936770,1737521451359,-500.0,0.00020273,2]
[349936771,1737521451368,-155.036872,0.00020273,2]
[349936772,1737521451377,-500.0,0.00020273,2]
[349936773,1737521451386,-500.0,0.00020273,2]
[349936774,1737521451396,-543.61,0.00020273,2]
[349936775,1737521451405,-1079.7,0.00020273,2]
[349936776,1737521451414,-500.0,0.00020273,2]
[349936777,1737521451423,-500.0,0.00020273,2]
[349936778,1737521451432,-719.33,0.00020273,2]
[349936779,1737521451441,-151.0,0.00020273,2]
[349936780,1737521451450,-500.0,0.00020273,2]
[349936781,1737521451460,-500.0,0.00020273,2]
[349936782,1737521451473,-500.0,0.00020273,2]
[349936783,1737521451482,-500.0,0.00020273,2]
[349936784,1737521451492,-500.0,0.00020273,2]
[349936785,1737521451502,-500.0,0.00020273,2]
[349936786,1737521451511,-500.0,0.00020273,2]
[349936787,1737521451520,-500.0,0.00020273,2]
[349936788,1737521451529,-152.358555,0.00020273,2]
[349936789,1737521451538,-500.0,0.00020273,2]
[349936790,1737521451548,-500.0,0.00020273,2]
[349936791,1737521451558,-500.0,0.00020273,2]
[349936792,1737521451568,-1382.91,0.00020273,2]
[349936793,1737521451576,-726.96,0.00020273,2]
[349936794,1737521451586,-500.0,0.00020273,2]
[349936795,1737521451595,-500.0,0.00020273,2]
[349936796,1737521451604,-500.0,0.00020273,2]
[349936797,1737521451613,-500.0,0.00020273,2]
[349936798,1737521451623,-500.0,0.00020273,2]
[349936799,1737521451633,-500.0,0.00020273,2]
[349936800,1737521451642,-500.0,0.00020273,2]
[349936801,1737521451651,-500.0,0.00020273,2]
[349936802,1737521451660,-500.0,0.00020273,2]
[349936803,1737521451669,-152.496584,0.00020273,2]
[349936804,1737521451678,-821.63,0.00020273,2]
[349936805,1737521451687,-644.32582007,0.00020273,2]
[349936806,1737521451697,-1182.14,0.00020273,2]
[349936807,1737521451706,-167.461277,0.00020273,2]
[349936808,1737521451716,-1059.86,0.00020273,2]
[349936809,1737521451724,-500.0,0.00020273,2]
[349936810,1737521451733,-500.0,0.00020273,2]
[349936811,1737521451742,-500.0,0.00020273,2]
[349936812,1737521451751,-1272.69,0.00020273,2]
[349936813,1737521451760,-155.079521,0.00020273,2]
[349936814,1737521451769,-500.0,0.00020273,2]
[349936815,1737521451779,-246.3044706,0.00020273,2]
[349936816,1737521451788,-500.0,0.00020273,2]
[349936817,1737521451798,-500.0,0.00020273,2]
[349936818,1737521451807,-500.0,0.00020273,2]
[349936819,1737521451816,-500.0,0.00020273,2]
[349936820,1737521451825,-156.039558,0.00020273,2]
[349936821,1737521451835,-154.612751,0.00020273,2]
[349936822,1737521451844,-500.0,0.00020273,2]
[349936823,1737521451853,-500.0,0.00020273,2]
[349936824,1737521451862,-500.0,0.00020273,2]
[349936825,1737521451871,-500.0,0.00020273,2]
[349936826,1737521451880,-500.0,0.00020273,2]
[349936827,1737521451889,-500.0,0.00020273,2]
[349936828,1737521451899,-152.529171,0.00020273,2]
[349936829,1737521451908,-500.0,0.00020273,2]
[349936830,1737521451918,-500.0,0.00020273,2]
[349936831,1737521451927,-500.0,0.00020273,2]
[349936832,1737521451936,-151.0,0.00020273,2]
[349936833,1737521451946,-500.0,0.00020273,2]
[349936834,1737521451955,-500.0,0.00020273,2]
[349936835,1737521451964,-595.26,0.00020273,2]
[349936836,1737521451974,-164.759677,0.00020273,2]
[349936837,1737521451983,-160.600484,0.00020273,2]
[349936838,1737521451992,-500.0,0.00020273,2]
[349936839,1737521452002,-500.0,0.00020273,2]
[349936840,1737521452011,-160.514346,0.00020273,2]
[349936841,1737521452021,-187.58,0.00020273,2]
[349936842,1737521452031,-540.26,0.00020273,2]
[349936843,1737521452040,-361.26330118,0.00020273,2]
[349936844,1737521452049,-1505.55,0.00020273,2]
[349936845,1737521452058,-1185.32,0.00020273,2]
[349936846,1737521452067,-249.16620439,0.00020273,2]
[349936847,1737521452076,-167.103659,0.00020273,2]
[349936848,1737521452086,-551.44363588,0.00020273,2]
[349936849,1737521452095,-500.0,0.00020273,2]
[349936850,1737521452104,-1284.17,0.00020273,2]
[349936851,1737521452113,-510.18344547,0.00020273,2]
[349936852,1737521452122,-500.0,0.00020273,2]
[349936853,1737521452130,-151.0,0.00020273,2]
[349936854,1737521452140,-500.0,0.00020273,2]
[349936855,1737521452149,-151.0,0.00020273,2]
[349936856,1737521452158,-598.02,0.00020273,2]
[349936857,1737521452167,-153.616872,0.00020273,2]
[349936858,1737521452176,-500.0,0.00020273,2]
[349936859,1737521452185,-500.0,0.00020273,2]
[349936860,1737521452195,-500.0,0.00020273,2]
[349936861,1737521452204,-500.0,0.00020273,2]
[349936862,1737521452214,-151.0,0.00020273,2]
[349936863,1737521452223,-500.0,0.00020273,2]
[349936864,1737521452232,-151.51647,0.00020273,2]
[349936865,1737521452242,-153.095287,0.00020273,2]
[349936866,1737521452251,-500.0,0.00020273,2]
[349936867,1737521452260,-500.0,0.00020273,2]
[349936868,1737521452269,-151.0,0.00020273,2]
[349936869,1737521452278,-500.0,0.00020273,2]
[349936870,1737521452288,-201.268711,0.00020273,2]
[349936871,1737521452297,-500.0,0.00020273,2]
[349936872,1737521452307,-524.39045472,0.00020273,2]
[349936873,1737521452316,-968.35,0.00020273,2]
[349936874,1737521452325,-697.44,0.00020273,2]
[349936875,1737521452334,-500.0,0.00020273,2]
[349936876,1737521452343,-500.0,0.00020273,2]
[349936877,1737521452353,-500.0,0.00020273,2]
[349936878,1737521452362,-549.04300947,0.00020273,2]
[349936879,1737521452371,-179.587963,0.00020273,2]
[349936880,1737521452380,-500.0,0.00020273,2]
[349936881,1737521452389,-516.69072469,0.00020273,2]
[349936882,1737521452398,-758.1,0.00020273,2]
[349936883,1737521452407,-151.0,0.00020273,2]
[349936884,1737521452417,-500.0,0.00020273,2]
[349936885,1737521452426,-500.0,0.00020273,2]
[349936886,1737521452435,-500.0,0.00020273,2]
[349936887,1737521452444,-589.678072,0.00020273,2]
[349936888,1737521452453,-510.68635301,0.00020273,2]
[349936889,1737521452463,-589.678072,0.00020273,2]
[349936890,1737521452475,-500.0,0.00020273,2]
[349936891,1737521452485,-512.70096986,0.00020273,2]
[349936892,1737521452494,-500.0,0.00020273,2]
[349936893,1737521452503,-667.18,0.00020273,2]
[349936894,1737521452512,-1083.83,0.00020273,2]
[349936895,1737521452521,-500.0,0.00020273,2]
[349936896,1737521452530,-809.94267325,0.00020343,2]
[349936897,1737521452540,-1342.83907396,0.00020344,2]
[349936898,1737521452550,-214.17,0.0002035,2]
[349936899,1737521452559,-300.0,0.00020356,2]
[349936900,1737521452568,-1985.3,0.00020356,2]
[349936901,1737521452577,-151.0,0.00020365,2]
[349936902,1737521452586,-152.985001,0.00020365,2]
[349936903,1737521452595,-152.395724,0.00020365,2]
[349936904,1737521452604,-152.932892,0.00020365,2]
[349936905,1737521452614,-156.420981,0.00020365,2]
[349936906,1737521452623,-151.0,0.00020365,2]
[349936907,1737521452632,-151.662485,0.00020365,2]
[349936908,1737521452641,-151.489078,0.00020546,2]
[349936909,1737521452650,-151.262016,0.00020546,2]
[349936910,1737521452659,-500.0,0.00020546,2]
[349936911,1737521452669,-247.287554,0.00020546,2]
[349936912,1737521452678,-152.122757,0.00020546,2]
[349936913,1737521452687,-151.959167,0.00020546,2]
[349936914,1737521452696,-737.47,0.00020546,2]
[349936915,1737521452705,-500.0,0.00020546,2]
[349936916,1737521452715,-961.36,0.00020546,2]
[349936917,1737521452723,-1189.47,0.00020546,2]
[349936918,1737521452733,-500.0,0.00020546,2]
[349936919,1737521452742,-782.27,0.00020546,2]
[349936920,1737521452752,-500.0,0.00020546,2]
[349936921,1737521452762,-609.28,0.00020546,2]
[349936922,1737521452771,-1055.6,0.00020546,2]
[349936923,1737521452781,-1336.25,0.00020546,2]
[349936924,1737521452790,-560.85,0.00020546,2]
[349936925,1737521452800,-1235.38,0.00020546,2]
[349936926,1737521452809,-500.0,0.00020546,2]
[349936927,1737521452818,-1484.05,0.00020546,2]
[349936928,1737521452827,-500.0,0.00020546,2]
[349936929,1737521452837,-500.0,0.00020546,2]
[349936930,1737521452846,-1876.017488,0.00020546,2]
[349936931,1737521452856,-500.0,0.00020546,2]
[349936932,1737521452865,-845.37,0.00020546,2]
[349936933,1737521452875,-151.0,0.00020546,2]
[349936934,1737521452885,-728.28,0.00020546,2]
[349936935,1737521452894,-500.0,0.00020546,2]
[349936936,1737521452904,-500.0,0.00020546,2]
[349936937,1737521452914,-1485.783947,0.00020546,2]
[349936938,1737521452923,-500.0,0.00020546,2]
[349936939,1737521452932,-1558.9,0.00020546,2]
[349936940,1737521452942,-1052.89,0.00020546,2]
[349936941,1737521452952,-500.0,0.00020546,2]
[349936942,1737521452961,-1630.24,0.00020546,2]
[349936943,1737521452970,-500.0,0.00020546,2]
[349936944,1737521453112,-500.0,0.00020546,2]
[349936945,1737521453122,-1962.53,0.00020546,2]
[349936946,1737521453131,-733.4,0.00020546,2]